fUSD/lending_fUSD_20250111
["ID","MTS","AMOUNT","RATE_DAILY","PERIOD"]
[348492118,1736579432298,-500.0,9.998e-05,2]
[348492119,1736579432307,-1064.08,9.998e-05,2]
[348492120,1736579432316,-1000.0,9.998e-05,2]
[348492121,1736579432325,-363.46923988,9.999e-05,2]
[348492122,1736579432334,-500.0,9.999e-05,2]
[348492123,1736579432345,-500.0,9.999e-05,2]
[348492124,1736579432354,-518.2441143,9.999e-05,2]
[348492125,1736579432363,-641.45302227,9.999e-05,2]
[348492126,1736579432372,-500.0,9.999e-05,2]
[348492127,1736579432381,-275.5449494,9.999e-05,2]
[348492128,1736579432390,-500.0,9.999e-05,2]
[348492129,1736579432399,-500.0,9.999e-05,2]
[348492130,1736579432408,-500.0,9.999e-05,2]
[348492131,1736579432418,-500.0,9.999e-05,2]
[348492133,1736579432427,-505.68212671,9.999e-05,2]
[348492135,1736579432435,-500.0,9.999e-05,2]
[348492137,1736579432445,-500.0,9.999e-05,2]
[348492139,1736579432454,-500.0,9.999e-05,2]
[348492141,1736579432463,-500.0,9.999e-05,2]
[348492143,1736579432472,-500.0,9.999e-05,2]
[348492145,1736579432481,-331.49726447,9.999e-05,2]
[348492147,1736579432490,-500.0,9.999e-05,2]
[348492149,1736579432500,-500.0,9.999e-05,2]
[348492151,1736579432508,-500.0,9.999e-05,2]
[348492153,1736579432517,-500.0,9.999e-05,2]
[348492155,1736579432527,-500.0,9.999e-05,2]
[348492157,1736579432536,-500.0,9.999e-05,2]
[348492159,1736579432545,-500.0,9.999e-05,2]
[348492161,1736579432555,-500.0,9.999e-05,2]
[348492163,1736579432564,-500.0,9.999e-05,2]
[348492165,1736579432573,-500.0,9.999e-05,2]
[348492167,1736579432583,-383.27753366,9.999e-05,2]
[348492169,1736579432593,-504.85762711,9.999e-05,2]
[348492171,1736579432602,-533.0,9.999e-05,2]
[348492173,1736579432611,-500.0,9.999e-05,2]
[348492175,1736579432620,-302.3514128,9.999e-05,2]
[348492177,1736579432629,-500.0,9.999e-05,2]
[348492179,1736579432639,-500.0,9.999e-05,2]
[348492181,1736579432649,-500.0,9.999e-05,2]
[348492183,1736579432660,-500.0,9.999e-05,2]
[348492186,1736579432670,-500.0,9.999e-05,2]
[348492187,1736579432680,-500.0,9.999e-05,2]
[348492189,1736579432690,-500.0,9.999e-05,2]
[348492191,1736579432701,-500.0,9.999e-05,2]
[348492193,1736579432711,-500.0,9.999e-05,2]
[348492196,1736579432722,-500.0,9.999e-05,2]
[348492198,1736579432731,-500.0,9.999e-05,2]
[348492199,1736579432741,-500.0,9.999e-05,2]
[348492202,1736579432751,-500.0,9.999e-05,2]
[348492204,1736579432761,-500.0,9.999e-05,2]
[348492206,1736579432770,-500.0,9.999e-05,2]
[348492208,1736579432780,-500.0,9.999e-05,2]
[348492210,1736579432789,-500.0,9.999e-05,2]
[348492212,1736579432798,-500.0,9.999e-05,2]
[348492213,1736579432807,-512.14524137,9.999e-05,2]
[348492215,1736579432816,-500.0,9.999e-05,2]
[348492217,1736579432826,-500.0,9.999e-05,2]
[348492219,1736579432835,-500.0,9.999e-05,2]
[348492221,1736579432845,-500.0,9.999e-05,2]
[348492223,1736579432854,-500.0,9.999e-05,2]
[348492225,1736579432863,-500.0,9.999e-05,2]
[348492227,1736579432872,-890.13,9.999e-05,2]
[348492229,1736579432881,-500.0,9.999e-05,2]
[348492231,1736579432890,-500.0,9.999e-05,2]
[348492233,1736579432903,-500.0,9.999e-05,2]
[348492235,1736579432912,-500.0,9.999e-05,2]
[348492238,1736579432922,-500.0,9.999e-05,2]
[348492240,1736579432931,-500.0,9.999e-05,2]
[348492242,1736579432940,-500.0,9.999e-05,2]
[348492243,1736579432949,-500.0,9.999e-05,2]
[348492245,1736579432958,-500.0,9.999e-05,2]
[348492247,1736579432967,-500.0,9.999e-05,2]
[348492250,1736579432976,-500.0,9.999e-05,2]
[348492251,1736579432986,-500.0,9.999e-05,2]
[348492253,1736579432995,-217.506298,9.999e-05,2]
[348492255,1736579433004,-549.14,9.999e-05,2]
[348492257,1736579433014,-500.0,9.999e-05,2]
[348492259,1736579433023,-500.0,9.999e-05,2]
[348492261,1736579433032,-500.0,9.999e-05,2]
[348492263,1736579433041,-736.39,9.999e-05,2]
[348492265,1736579433051,-890.47,9.999e-05,2]
[348492267,1736579433060,-797.76,9.999e-05,2]
[348492269,1736579433069,-500.0,9.999e-05,2]
[348492271,1736579433079,-1802.12,9.999e-05,2]
[348492274,1736579433089,-908.65,9.999e-05,2]
[348492276,1736579433099,-802.18,9.999e-05,2]
[348492277,1736579433108,-1902.29,9.999e-05,2]
[348492279,1736579433117,-1279.58,9.999e-05,2]
[348492282,1736579433127,-627.38,9.999e-05,2]
[348492284,1736579433136,-691.38,9.999e-05,2]
[348492286,1736579433146,-804.53,9.999e-05,2]
[348492288,1736579433156,-500.0,9.999e-05,2]
[348492289,1736579433165,-500.0,9.999e-05,2]
[348492291,1736579433175,-500.0,9.999e-05,2]
[348492294,1736579433185,-729.56646647,0.0001,2]
[348492296,1736579433194,-150.0,0.00010082,2]
[348492298,1736579433203,-3124.209,0.00010082,2]
[348492300,1736579433212,-3896.0,0.00010082,2]
[348492302,1736579433225,-153.97321035,0.00010172,2]
[348492304,1736579433235,-12778.1676,0.00010173,2]
[348492306,1736579433244,-1000.0,0.00010181,2]
[348492308,1736579433253,-1000.0,0.00010181,2]
[348492310,1736579433262,-1000.0,0.00010181,2]
[348492312,1736579433271,-1000.0,0.00010181,2]
[348492326,1736579433507,-1000.0,0.00010181,2]
[348492328,1736579433516,-1000.0,0.00010181,2]
[348492330,1736579433526,-1000.0,0.00010181,2]
[348492332,1736579433535,-1000.0,0.00010181,2]
[348492334,1736579433544,-1000.0,0.00010181,2]
[348492336,1736579433553,-1000.0,0.00010181,2]
[348492338,1736579433562,-566.0,0.0001026,2]
[348492340,1736579433572,-832.0,0.0001026,2]
[348492342,1736579433581,-1501.67,0.00010272,2]
[348492344,1736579433590,-714.71,0.00010272,2]
[348492346,1736579433599,-559.06,0.00010272,2]
[348492348,1736579433608,-500.0,0.00010272,2]
[348492350,1736579433617,-599.37,0.00010272,2]
[348492352,1736579433626,-500.0,0.00010272,2]
[348492354,1736579433635,-500.0,0.00010272,2]
[348492356,1736579433644,-572.04,0.00010272,2]
[348492358,1736579433654,-548.21,0.00010272,2]
[348492360,1736579433663,-807.32,0.00010272,2]
[348492362,1736579433672,-1311.46,0.00010272,2]
[348492364,1736579433682,-2368.72,0.00010272,2]
[348492366,1736579433691,-500.0,0.00010272,2]
[348492368,1736579433700,-519.25,0.00010272,2]
[348492369,1736579433709,-500.0,0.00010272,2]
[348492371,1736579433718,-1396.17,0.00010272,2]
[348492373,1736579433728,-645.49,0.00010272,2]
[348492376,1736579433737,-500.0,0.00010272,2]
[348492377,1736579433746,-1064.08,0.00010272,2]
[348492379,1736579433756,-164.6325614,0.00010273,2]
[348492382,1736579433765,-183.61708795,0.00010273,2]
[348492384,1736579433774,-432.35743905,0.00010273,2]
[348492386,1736579433783,-285.94496118,0.00010273,2]
[348492387,1736579433792,-500.0,0.00010273,2]
[348492390,1736579433802,-500.0,0.00010273,2]
[348492391,1736579433811,-500.0,0.00010273,2]
[348492393,1736579433821,-500.0,0.00010273,2]
[348492396,1736579433831,-500.0,0.00010273,2]
[348492398,1736579433841,-890.13,0.00010273,2]
[348492400,1736579433850,-500.0,0.00010273,2]
[348492401,1736579433860,-500.0,0.00010273,2]
[348492404,1736579433870,-500.0,0.00010273,2]
[348492405,1736579433879,-500.0,0.00010273,2]
[348492407,1736579433889,-500.0,0.00010273,2]
[348492409,1736579433903,-549.14,0.00010273,2]
[348492411,1736579433913,-736.39,0.00010273,2]
[348492414,1736579433923,-890.47,0.00010273,2]
[348492416,1736579433933,-797.76,0.00010273,2]
[348492418,1736579433943,-1802.12,0.00010273,2]
[348492419,1736579433952,-908.65,0.00010273,2]
[348492421,1736579433962,-802.18,0.00010273,2]
[348492423,1736579433971,-1902.29,0.00010273,2]
[348492425,1736579433981,-1279.58,0.00010273,2]
[348492428,1736579433991,-627.38,0.00010273,2]
[348492430,1736579434000,-691.38,0.00010273,2]
[348492432,1736579434010,-804.53,0.00010273,2]
[348492433,1736579434020,-500.0,0.00010273,2]
[348492436,1736579434029,-500.0,0.00010273,2]
[348492437,1736579434039,-365.0,0.000103,2]
[348492439,1736579434048,-1000.0,0.000103,2]
[348492441,1736579434057,-231.0,0.000103,2]
[348492443,1736579434067,-5523.0,0.000104,5]
[348492445,1736579434076,-229.751,0.0001041,2]
[348492447,1736579434086,-825.87,0.00010454,2]
[348492449,1736579434097,-250.0,0.000105,2]
[348492451,1736579434107,-500.0,0.00010545,2]
[348492453,1736579434116,-500.0,0.00010545,2]
[348492456,1736579434126,-500.0,0.00010545,2]
[348492457,1736579434136,-500.0,0.00010545,2]
[348492459,1736579434145,-500.0,0.00010545,2]
[348492460,1736579434155,-500.0,0.00010545,2]
[348492461,1736579434165,-931.08,0.00010545,2]
[348492463,1736579434175,-603.59,0.00010545,2]
[348492465,1736579434184,-500.0,0.00010545,2]
[348492466,1736579434194,-1026.91,0.00010545,2]
[348492467,1736579434204,-544.77,0.00010545,2]
[348492468,1736579434214,-1134.63,0.00010545,2]
[348492469,1736579434223,-2820.79,0.00010545,2]
[348492470,1736579434233,-500.0,0.00010545,2]
[348492471,1736579434242,-500.0,0.00010545,2]
[348492472,1736579434251,-500.0,0.00010545,2]
[348492473,1736579434261,-500.0,0.00010545,2]
[348492474,1736579434271,-545.68,0.00010545,2]
[348492475,1736579434281,-1593.96,0.00010545,2]
[348492476,1736579434291,-1002.9,0.00010545,2]
[348492477,1736579434301,-837.99,0.00010545,2]
[348492478,1736579434311,-616.25,0.00010545,2]
[348492479,1736579434321,-500.0,0.00010545,2]
[348492480,1736579434331,-500.0,0.00010545,2]
[348492481,1736579434340,-501.59,0.00010545,2]
[348492482,1736579434350,-1380.16,0.00010545,2]
[348492483,1736579434359,-500.0,0.00010545,2]
[348492484,1736579434369,-500.0,0.00010545,2]
[348492485,1736579434379,-1206.44,0.00010545,2]
[348492486,1736579434388,-500.0,0.00010545,2]
[348492487,1736579434407,-1175.27,0.00010545,2]
[348492488,1736579434418,-629.64,0.00010545,2]
[348492489,1736579434428,-1009.95,0.00010545,2]
[348492490,1736579434438,-772.93,0.00010545,2]
[348492491,1736579434448,-500.0,0.00010545,2]
[348492492,1736579434457,-689.85,0.00010545,2]
[348492493,1736579434467,-500.0,0.00010545,2]
[348492494,1736579434476,-1511.59,0.00010545,2]
[348492495,1736579434486,-500.0,0.00010545,2]
[348492496,1736579434496,-500.0,0.00010545,2]
[348492497,1736579434506,-367.069654,0.00010545,2]
[348492498,1736579434515,-500.0,0.00010545,2]
[348492499,1736579434525,-156.900603,0.00010545,2]
[348492500,1736579434535,-500.0,0.00010545,2]
[348492501,1736579434544,-500.0,0.00010545,2]
[348492502,1736579434554,-500.0,0.00010545,2]
[348492503,1736579434564,-500.0,0.00010545,2]
[348492504,1736579434574,-500.0,0.00010545,2]
[348492505,1736579434584,-159.27463861,0.00010545,2]
[348492506,1736579434594,-308.61943384,0.00010545,2]
[348492507,1736579434604,-500.0,0.00010545,2]
[348492508,1736579434614,-1501.67,0.00010546,2]
[348492509,1736579434624,-331.5446679,0.00010546,2]
[348492510,1736579434633,-714.71,0.00010546,2]
[348492511,1736579434643,-500.0,0.00010546,2]
[348492512,1736579434652,-500.0,0.00010546,2]
[348492513,1736579434662,-500.0,0.00010546,2]
[348492514,1736579434671,-500.0,0.00010546,2]
[348492515,1736579434681,-500.0,0.00010546,2]
[348492516,1736579434690,-500.0,0.00010546,2]
[348492517,1736579434700,-500.0,0.00010546,2]
[348492518,1736579434710,-500.0,0.00010546,2]
[348492519,1736579434719,-500.0,0.00010546,2]
[348492520,1736579434731,-500.0,0.00010546,2]
[348492521,1736579434741,-500.0,0.00010546,2]
[348492522,1736579434751,-500.0,0.00010546,2]
[348492523,1736579434761,-500.0,0.00010546,2]
[348492524,1736579434771,-500.0,0.00010546,2]
[348492525,1736579434781,-500.0,0.00010546,2]
[348492526,1736579434790,-500.0,0.00010546,2]
[348492527,1736579434800,-500.0,0.00010546,2]
[348492528,1736579434810,-500.0,0.00010546,2]
[348492529,1736579434820,-640.23,0.00010546,2]
[348492530,1736579434829,-500.0,0.00010546,2]
[348492531,1736579434839,-500.0,0.00010546,2]
[348492532,1736579434850,-500.0,0.00010546,2]
[348492533,1736579434859,-500.0,0.00010546,2]
[348492534,1736579434869,-500.0,0.00010546,2]
[348492535,1736579434878,-500.0,0.00010546,2]
[348492536,1736579434888,-500.0,0.00010546,2]
[348492537,1736579434898,-500.0,0.00010546,2]
[348492538,1736579434907,-500.0,0.00010546,2]
[348492539,1736579434917,-500.0,0.00010546,2]
[348492540,1736579434927,-500.0,0.00010546,2]
[348492541,1736579434937,-407.10128539,0.00010546,2]
[348492542,1736579434947,-500.0,0.00010546,2]
[348492543,1736579434956,-500.0,0.00010546,2]
[348492544,1736579434966,-500.0,0.00010546,2]
[348492545,1736579434975,-500.0,0.00010546,2]
[348492546,1736579434985,-500.0,0.00010546,2]
[348492547,1736579434995,-500.0,0.00010546,2]
[348492548,1736579435005,-500.0,0.00010546,2]
[348492549,1736579435015,-539.55,0.00010546,2]
[348492550,1736579435025,-500.0,0.00010546,2]
[348492551,1736579435035,-500.0,0.00010546,2]
[348492552,1736579435045,-500.0,0.00010546,2]
[348492553,1736579435054,-500.0,0.00010546,2]
[348492554,1736579435064,-500.0,0.00010546,2]
[348492555,1736579435074,-184.09617508,0.00010546,2]
[348492556,1736579435084,-500.0,0.00010546,2]
[348492557,1736579435095,-500.0,0.00010546,2]
[348492558,1736579435105,-500.0,0.00010546,2]
[348492559,1736579435115,-500.0,0.00010546,2]
[348492560,1736579435124,-500.0,0.00010546,2]
[348492561,1736579435133,-500.0,0.00010546,2]
[348492562,1736579435143,-500.0,0.00010546,2]
[348492563,1736579435152,-334.39449365,0.00010546,2]
[348492564,1736579435162,-500.0,0.00010546,2]
[348492565,1736579435172,-500.0,0.00010546,2]
[348492566,1736579435181,-500.0,0.00010546,2]
[348492567,1736579435191,-500.0,0.00010546,2]
[348492568,1736579435201,-500.0,0.00010546,2]
[348492569,1736579435211,-500.0,0.00010546,2]
[348492570,1736579435220,-500.0,0.00010546,2]
[348492571,1736579435230,-500.0,0.00010546,2]
[348492572,1736579435240,-500.0,0.00010546,2]
[348492573,1736579435249,-500.0,0.00010546,2]
[348492574,1736579435259,-500.0,0.00010546,2]
[348492575,1736579435268,-559.06,0.00010546,2]
[348492576,1736579435277,-500.0,0.00010546,2]
[348492577,1736579435287,-500.0,0.00010546,2]
[348492578,1736579435296,-586.97,0.00010546,2]
[348492579,1736579435306,-507.62,0.00010546,2]
[348492580,1736579435315,-500.0,0.00010546,2]
[348492581,1736579435324,-500.0,0.00010546,2]
[348492582,1736579435334,-310.4343966,0.00010546,2]
[348492583,1736579435344,-556.39,0.00010546,2]
[348492584,1736579435354,-512.99,0.00010546,2]
[348492585,1736579435363,-500.0,0.00010546,2]
[348492586,1736579435372,-500.0,0.00010546,2]
[348492587,1736579435382,-500.0,0.00010546,2]
[348492588,1736579435391,-500.0,0.00010546,2]
[348492589,1736579435400,-500.0,0.00010546,2]
[348492590,1736579435410,-500.0,0.00010546,2]
[348492591,1736579435420,-500.0,0.00010546,2]
[348492592,1736579435429,-500.0,0.00010546,2]
[348492593,1736579435439,-500.0,0.00010546,2]
[348492594,1736579435448,-500.0,0.00010546,2]
[348492595,1736579435458,-500.0,0.00010546,2]
[348492596,1736579435467,-500.0,0.00010546,2]
[348492597,1736579435477,-500.0,0.00010546,2]
[348492598,1736579435486,-500.0,0.00010546,2]
[348492599,1736579435495,-500.0,0.00010546,2]
[348492600,1736579435505,-500.0,0.00010546,2]
[348492601,1736579435514,-500.0,0.00010546,2]
[348492602,1736579435524,-500.0,0.00010546,2]
[348492603,1736579435533,-500.0,0.00010546,2]
[348492604,1736579435543,-500.0,0.00010546,2]
[348492605,1736579435552,-500.0,0.00010546,2]
[348492606,1736579435562,-500.0,0.00010546,2]
[348492607,1736579435571,-500.0,0.00010546,2]
[348492608,1736579435580,-432.86316125,0.00010546,2]
[348492609,1736579435589,-500.0,0.00010546,2]
[348492610,1736579435599,-500.0,0.00010546,2]
[348492611,1736579435608,-500.0,0.00010546,2]
[348492612,1736579435617,-500.0,0.00010546,2]
[348492613,1736579435627,-500.0,0.00010546,2]
[348492614,1736579435636,-500.0,0.00010546,2]
[348492615,1736579435646,-538.43,0.00010546,2]
[348492616,1736579435655,-500.0,0.00010546,2]
[348492617,1736579435664,-500.98184902,0.00010546,2]
[348492618,1736579435673,-452.47443163,0.00010546,2]
[348492619,1736579435682,-500.0,0.00010546,2]
[348492620,1736579435691,-500.0,0.00010546,2]
[348492621,1736579435701,-500.0,0.00010546,2]
[348492622,1736579435710,-500.0,0.00010546,2]
[348492623,1736579435719,-500.0,0.00010546,2]
[348492624,1736579435730,-500.0,0.00010546,2]
[348492625,1736579435740,-501.3005144,0.00010546,2]
[348492626,1736579435750,-503.60797248,0.00010546,2]
[348492627,1736579435759,-501.22075627,0.00010546,2]
[348492628,1736579435775,-500.0,0.00010546,2]
[348492629,1736579435788,-500.0,0.00010546,2]
[348492630,1736579435802,-500.0,0.00010546,2]
[348492631,1736579435815,-500.0,0.00010546,2]
[348492632,1736579435829,-500.0,0.00010546,2]
[348492633,1736579435841,-500.0,0.00010546,2]
[348492634,1736579435851,-500.0,0.00010546,2]
[348492635,1736579435863,-500.0,0.00010546,2]
[348492636,1736579435876,-500.0,0.00010546,2]
[348492637,1736579435888,-500.0,0.00010546,2]
[348492638,1736579435900,-500.0,0.00010546,2]
[348492639,1736579435912,-500.0,0.00010546,2]
[348492640,1736579435924,-500.0,0.00010546,2]
[348492641,1736579435937,-501.16727073,0.00010546,2]
[348492642,1736579435949,-500.37079652,0.00010546,2]
[348492643,1736579435961,-500.0,0.00010546,2]
[348492644,1736579435973,-599.37,0.00010546,2]
[348492645,1736579435985,-503.57027241,0.00010546,2]
[348492646,1736579435997,-500.0,0.00010546,2]
[348492647,1736579436007,-500.0,0.00010546,2]
[348492648,1736579436018,-500.0,0.00010546,2]
[348492649,1736579436028,-500.0,0.00010546,2]
[348492650,1736579436040,-500.0,0.00010546,2]
[348492651,1736579436053,-485.82,0.00010546,2]
[348492652,1736579436065,-500.0,0.00010546,2]
[348492653,1736579436077,-500.0,0.00010546,2]
[348492654,1736579436089,-500.0,0.00010546,2]
[348492655,1736579436102,-500.0,0.00010546,2]
[348492656,1736579436114,-500.0,0.00010546,2]
[348492657,1736579436127,-500.0,0.00010546,2]
[348492658,1736579436139,-500.0,0.00010546,2]
[348492659,1736579436151,-500.0,0.00010546,2]
[348492660,1736579436163,-500.0,0.00010546,2]
[348492661,1736579436174,-500.0,0.00010546,2]
[348492662,1736579436189,-500.0,0.00010546,2]
[348492663,1736579436200,-500.0,0.00010546,2]
[348492664,1736579436212,-500.0,0.00010546,2]
[348492665,1736579436224,-500.0,0.00010546,2]
[348492666,1736579436235,-500.0,0.00010546,2]
[348492667,1736579436249,-500.0,0.00010546,2]
[348492668,1736579436261,-500.0,0.00010546,2]
[348492669,1736579436274,-500.0,0.00010546,2]
[348492670,1736579436286,-501.6426377,0.00010546,2]
[348492671,1736579436299,-500.0,0.00010546,2]
[348492672,1736579436311,-595.26,0.00010546,2]
[348492673,1736579436324,-500.0,0.00010546,2]
[348492674,1736579436336,-500.0,0.00010546,2]
[348492675,1736579436348,-506.05278059,0.00010546,2]
[348492676,1736579436359,-500.0,0.00010546,2]
[348492677,1736579436370,-501.57416731,0.00010546,2]
[348492678,1736579436380,-500.0,0.00010546,2]
[348492679,1736579436391,-506.63050882,0.00010546,2]
[348492680,1736579436403,-500.0,0.00010546,2]
[348492681,1736579436414,-500.0,0.00010546,2]
[348492682,1736579436426,-500.0,0.00010546,2]
[348492683,1736579436440,-500.0,0.00010546,2]
[348492684,1736579436452,-500.0,0.00010546,2]
[348492685,1736579436462,-501.91431287,0.00010546,2]
[348492686,1736579436472,-500.0,0.00010546,2]
[348492687,1736579436483,-500.0,0.00010546,2]
[348492688,1736579436493,-500.0,0.00010546,2]
[348492689,1736579436504,-500.0,0.00010546,2]
[348492690,1736579436515,-500.0,0.00010546,2]
[348492691,1736579436527,-500.0,0.00010546,2]
[348492692,1736579436539,-500.0,0.00010546,2]
[348492693,1736579436551,-500.0,0.00010546,2]
[348492694,1736579436561,-500.0,0.00010546,2]
[348492695,1736579436571,-500.0,0.00010546,2]
[348492696,1736579436581,-500.0,0.00010546,2]
[348492697,1736579436592,-500.0,0.00010546,2]
[348492698,1736579436602,-500.0,0.00010546,2]
[348492699,1736579436613,-500.0,0.00010546,2]
[348492700,1736579436623,-500.0,0.00010546,2]
[348492701,1736579436634,-540.24285704,0.00010546,2]
[348492702,1736579436644,-500.0,0.00010546,2]
[348492703,1736579436655,-500.0,0.00010546,2]
[348492704,1736579436666,-500.0,0.00010546,2]
[348492705,1736579436677,-500.0,0.00010546,2]
[348492706,1736579436688,-357.42731097,0.00010546,2]
[348492707,1736579436698,-500.0,0.00010546,2]
[348492708,1736579436709,-500.0,0.00010546,2]
[348492709,1736579436719,-385.47315604,0.00010546,2]
[348492710,1736579436730,-593.06709726,0.00010546,2]
[348492711,1736579436741,-500.0,0.00010546,2]
[348492712,1736579436752,-500.0,0.00010546,2]
[348492713,1736579436763,-501.28719864,0.00010546,2]
[348492714,1736579436774,-500.0,0.00010546,2]
[348492715,1736579436785,-500.0,0.00010546,2]
[348492716,1736579436796,-500.0,0.00010546,2]
[348492717,1736579436807,-1752.05,0.00010546,2]
[348492718,1736579436817,-500.0,0.00010546,2]
[348492719,1736579436829,-500.0,0.00010546,2]
[348492720,1736579436839,-500.0,0.00010546,2]
[348492721,1736579436851,-500.0,0.00010546,2]
[348492722,1736579436867,-500.0,0.00010546,2]
[348492723,1736579436878,-572.04,0.00010546,2]
[348492724,1736579436890,-500.0,0.00010546,2]
[348492725,1736579436907,-500.0,0.00010546,2]
[348492726,1736579436918,-548.21,0.00010546,2]
[348492727,1736579436929,-386.46317796,0.00010546,2]
[348492728,1736579436939,-500.0,0.00010546,2]
[348492729,1736579436950,-500.0,0.00010546,2]
[348492730,1736579436961,-500.0,0.00010546,2]
[348492731,1736579436972,-500.0,0.00010546,2]
[348492732,1736579436982,-500.0,0.00010546,2]
[348492733,1736579436993,-500.0,0.00010546,2]
[348492734,1736579437003,-500.0,0.00010546,2]
[348492735,1736579437015,-500.0,0.00010546,2]
[348492736,1736579437025,-500.0,0.00010546,2]
[348492737,1736579437036,-507.99216678,0.00010546,2]
[348492738,1736579437047,-500.0,0.00010546,2]
[348492739,1736579437058,-500.0,0.00010546,2]
[348492740,1736579437069,-500.0,0.00010546,2]
[348492741,1736579437080,-500.0,0.00010546,2]
[348492742,1736579437092,-500.0,0.00010546,2]
[348492743,1736579437103,-500.0,0.00010546,2]
[348492744,1736579437114,-500.0,0.00010546,2]
[348492745,1736579437125,-500.0,0.00010546,2]
[348492746,1736579437136,-554.68217707,0.00010546,2]
[348492747,1736579437147,-500.0,0.00010546,2]
[348492748,1736579437158,-500.0,0.00010546,2]
[348492749,1736579437169,-500.0,0.00010546,2]
[348492750,1736579437179,-500.0,0.00010546,2]
[348492751,1736579437190,-500.0,0.00010546,2]
[348492752,1736579437201,-500.0,0.00010546,2]
[348492753,1736579437212,-500.0,0.00010546,2]
[348492754,1736579437223,-500.0,0.00010546,2]
[348492755,1736579437234,-500.0,0.00010546,2]
[348492756,1736579437244,-454.98434993,0.00010546,2]
[348492757,1736579437255,-500.0,0.00010546,2]
[348492758,1736579437265,-500.0,0.00010546,2]
[348492759,1736579437276,-500.0,0.00010546,2]
[348492760,1736579437287,-500.0,0.00010546,2]
[348492761,1736579437297,-520.37,0.00010546,2]
[348492762,1736579437308,-500.0,0.00010546,2]
[348492763,1736579437319,-500.0,0.00010546,2]
[348492764,1736579437329,-500.0,0.00010546,2]
[348492765,1736579437340,-500.0,0.00010546,2]
[348492766,1736579437351,-500.0,0.00010546,2]
[348492767,1736579437362,-501.04596101,0.00010546,2]
[348492768,1736579437373,-500.0,0.00010546,2]
[348492769,1736579437383,-500.0,0.00010546,2]
[348492770,1736579437394,-500.0,0.00010546,2]
[348492771,1736579437405,-500.0,0.00010546,2]
[348492772,1736579437416,-500.0,0.00010546,2]
[348492773,1736579437427,-501.58407469,0.00010546,2]
[348492775,1736579437438,-500.0,0.00010546,2]
[348492776,1736579437448,-500.0,0.00010546,2]
[348492777,1736579437459,-501.05795997,0.00010546,2]
[348492779,1736579437470,-500.0,0.00010546,2]
[348492781,1736579437481,-506.47600126,0.00010546,2]
[348492784,1736579437492,-500.0,0.00010546,2]
[348492786,1736579437503,-500.0,0.00010546,2]
[348492787,1736579437513,-500.0,0.00010546,2]
[348492788,1736579437524,-501.96613158,0.00010546,2]
[348492789,1736579437535,-500.0,0.00010546,2]
[348492790,1736579437546,-502.35174852,0.00010546,2]
[348492791,1736579437557,-500.0,0.00010546,2]
[348492792,1736579437567,-337.30517856,0.00010546,2]
[348492793,1736579437578,-502.60249091,0.00010546,2]
[348492794,1736579437588,-500.0,0.00010546,2]
[348492795,1736579437600,-504.46564412,0.00010546,2]